fUSD/lending_fUSD_20240906
["ID","MTS","AMOUNT","RATE_DAILY","PERIOD"]
[337307146,1725591087207,-150.0,0.00044804,120]
[337307147,1725591087232,-150.0,0.00044809,120]
[337307148,1725591087260,-150.0,0.00044817,30]
[337307149,1725591087284,-150.0,0.00044831,30]
[337307150,1725591087311,-150.0,0.00044832,30]
[337307151,1725591087338,-210.0,0.0004489,30]
[337307152,1725591087368,-337.56471111,0.000449,120]
[337307153,1725591087393,-140855.67591215,0.000449,30]
[337307154,1725591087417,-75000.0,0.000449,30]
[337307155,1725591087441,-207.0,0.000449,30]
[337307156,1725591087468,-629.86569313,0.00044931,120]
[337307157,1725591087494,-1342.28,0.00044931,120]
[337307158,1725591087519,-2000.0,0.00044931,120]
[337307159,1725591087547,-500.0,0.00044931,120]
[337307160,1725591087572,-2005.7,0.00044946,30]
[337307161,1725591087597,-150.0,0.00044948,30]
[337307162,1725591087624,-254.39,0.00044956,30]
[337307163,1725591087649,-150.0,0.00044964,30]
[337307164,1725591087674,-411.0,0.00044986,120]
[337307165,1725591087702,-50000.0,0.00045,35]
[337307166,1725591087729,-50000.0,0.00045,45]
[337307167,1725591087753,-500.0,0.00045,30]
[337307168,1725591087778,-343.5100167,0.00045,30]
[337307169,1725591087803,-400.0,0.00045,30]
[337307170,1725591087828,-400.0,0.00045,30]
[337307171,1725591087853,-500.0,0.00045,30]
[337307172,1725591087879,-500.0,0.00045,30]
[337307173,1725591087905,-500.0,0.00045,30]
[337307174,1725591087931,-500.0,0.00045,30]
[337307175,1725591087955,-50000.0,0.00045,120]
[337307176,1725591087979,-247.96881893,0.00045,120]
[337307177,1725591088003,-150.0,0.00045,85]
[337307178,1725591088027,-1617.17971288,0.00045,90]
[337307179,1725591088052,-185.99599612,0.00045,30]
[337307180,1725591088080,-880.62489124,0.00045,120]
[337307181,1725591088105,-225.04831608,0.00045,40]
[337307182,1725591088129,-821.623337,0.00045,120]
[337307183,1725591088154,-308.30309063,0.00045,120]
[337307184,1725591088178,-617.96455641,0.00045,120]
[337307185,1725591088202,-537.34606712,0.00045,120]
[337307186,1725591088228,-623689.01296288,0.00045,120]
[337307187,1725591093064,-150.0,0.00035434,120]
[337307188,1725591093102,-150.0,0.000439,120]
[337307189,1725591093128,-376310.98703712,0.00045,120]
[337307190,1725591093154,-500000.0,0.00045,120]
[337307191,1725591093178,-3065.23787823,0.00045,120]
[337307192,1725591093202,-750.24044724,0.00045,120]
[337307193,1725591093226,-1033.63729827,0.00045,120]
[337307194,1725591093250,-9000.0,0.00045,45]
[337307195,1725591093275,-633.0,0.00045,120]
[337307196,1725591093299,-510.0,0.00045,120]
[337307197,1725591093322,-500.0,0.00045,120]
[337307198,1725591093345,-7279.46687927,0.00045,120]
[337307199,1725591093369,-150.0,0.00045,120]
[337307200,1725591093393,-699.0,0.00045,120]
[337307201,1725591093418,-2835.32931662,0.00045,120]
[337307202,1725591093442,-155.739583,0.00045,56]
[337307203,1725591093643,-1000.0,0.00045,120]
[337307204,1725591093670,-320.0,0.00045,120]
[337307205,1725591093696,-1000.0,0.00045,120]
[337307206,1725591093724,-1074.45606785,0.00045,35]
[337307207,1725591093750,-345.63759,0.0004512,30]
[337307208,1725591093778,-2677.88,0.0004518,90]
[337307209,1725591093806,-150.0,0.00045192,30]
[337307210,1725591093835,-1342.28,0.00045205,120]
[337307211,1725591093861,-185.10168,0.00045205,120]
[337307212,1725591093887,-151.0,0.00045205,120]
[337307213,1725591093913,-150.0,0.00045409,120]
[337307214,1725591093940,-150.0,0.00045433,30]
[337307215,1725591093965,-150.0,0.00045434,120]
[337307216,1725591093992,-1342.28,0.00045479,120]
[337307217,1725591094018,-2000.0,0.00045479,120]
[337307218,1725591094044,-150.0,0.00045554,30]
[337307219,1725591094070,-226.14922687,0.000456,120]
[337307220,1725591094095,-150.0,0.00045629,120]
[337307221,1725591094127,-1342.28,0.00045753,120]
[337307222,1725591094153,-4200.0,0.00045753,30]
[337307223,1725591094180,-150.0,0.00045825,30]
[337307224,1725591094206,-150.0,0.00045876,120]
[337307225,1725591094232,-150.0,0.00045915,30]
[337307226,1725591094259,-411.0,0.00045986,120]
[337307227,1725591094288,-50000.0,0.00046,36]
[337307228,1725591094316,-50000.0,0.00046,46]
[337307229,1725591094342,-800.0,0.00046,120]
[337307230,1725591094369,-170.3,0.00046,96]
[337307231,1725591094395,-1000.0,0.00046,30]
[337307232,1725591094422,-1000000.0,0.00046,120]
[337307233,1725591094447,-500000.0,0.00046,120]
[337307234,1725591094473,-593.83,0.00046,120]
[337307235,1725591094498,-1000.0,0.00046,120]
[337307236,1725591094523,-1000.0,0.00046,120]
[337307237,1725591094547,-1000.0,0.00046,120]
[337307238,1725591094571,-1000.0,0.00046,120]
[337307239,1725591094596,-1000.0,0.00046,120]
[337307240,1725591094620,-1000.0,0.00046,120]
[337307241,1725591094648,-1000.0,0.00046,120]
[337307242,1725591094672,-1000.0,0.00046,120]
[337307243,1725591094696,-1000.0,0.00046,120]
[337307244,1725591094723,-1000.0,0.00046,120]
[337307245,1725591094746,-1000.0,0.00046,120]
[337307246,1725591094770,-1000.0,0.00046,120]
[337307247,1725591094794,-1000.0,0.00046,120]
[337307248,1725591094817,-1000.0,0.00046,120]
[337307249,1725591094840,-10108.41919198,0.00046,120]
[337307250,1725591094864,-10104.71514987,0.00046,120]
[337307251,1725591094888,-2000.0,0.00046,120]
[337307252,1725591094914,-80000.0,0.00046,30]
[337307253,1725591094937,-1000.0,0.00046,120]
[337307254,1725591094973,-1000000.0,0.00046,120]
[337307255,1725591095006,-2165.08659611,0.00046,120]
[337307256,1725591095038,-1258.86116254,0.00046,120]
[337307257,1725591095071,-1342.28,0.00046027,120]
[337307258,1725591095105,-2000.0,0.00046027,120]
[337307259,1725591095139,-150.0,0.0004607,120]
[337307260,1725591095172,-2789.7788,0.0004618,90]
[337307261,1725591095204,-150.0,0.00046217,30]
[337307262,1725591095237,-151.0,0.00046219,120]
[337307263,1725591095270,-150.0,0.00046277,30]
[337307264,1725591095303,-1342.28,0.00046301,120]
[337307265,1725591095335,-7305.02069616,0.000464,60]
[337307266,1725591095369,-25000.0,0.000465,30]
[337307267,1725591095401,-473.40858824,0.000465,120]
[337307268,1725591095433,-10030.5380247,0.000465,120]
[337307269,1725591095466,-207.0,0.0004657,30]
[337307270,1725591095497,-210.0,0.0004657,30]
[337307271,1725591095530,-500.0,0.00046575,120]
[337307272,1725591095562,-500.0,0.00046575,120]
[337307273,1725591095596,-500.0,0.00046575,120]
[337307274,1725591095634,-500.08150656,0.00046575,120]
[337307275,1725591095670,-1342.28,0.00046575,120]
[337307276,1725591095706,-2000.0,0.00046575,120]
[337307277,1725591095739,-2500.0,0.00046575,30]
[337307278,1725591095772,-150.0,0.00046611,120]
[337307279,1725591095806,-150.0,0.00046638,30]
[337307280,1725591095838,-698.67,0.0004666,120]
[337307281,1725591095870,-600000.0,0.0004669,120]
[337307282,1725591095902,-256.4141048,0.00046704,40]
[337307283,1725591095936,-203.70593773,0.00046704,40]
[337307284,1725591095969,-232.06191271,0.00046704,40]
[337307285,1725591096003,-294.22898633,0.00046704,40]
[337307286,1725591096035,-1099.99999994,0.000468,120]
[337307287,1725591096067,-150.0,0.00046804,120]
[337307288,1725591096101,-1342.28,0.00046849,120]
[337307289,1725591096135,-4200.0,0.00046849,30]
[337307290,1725591096168,-150.0,0.00046862,120]
[337307291,1725591096201,-795.0,0.0004698,30]
[337307292,1725591096234,-1000.0,0.00046999,120]
[337307293,1725591096270,-50000.0,0.00047,37]
[337307294,1725591096305,-50000.0,0.00047,47]
[337307295,1725591096337,-2000.42928388,0.00047,120]
[337307296,1725591096372,-240.06089775,0.00047,120]
[337307297,1725591096404,-1226.0,0.00047,120]
[337307298,1725591096438,-1000000.0,0.00047,120]
[337307299,1725591096471,-1028.0,0.00047,120]
[337307300,1725591096504,-2268.687,0.00047,90]
[337307301,1725591096538,-524.21479235,0.00047,120]
[337307302,1725591096571,-500000.0,0.00047,120]
[337307303,1725591096604,-1000.0,0.00047,120]
[337307304,1725591096639,-7971.0,0.00047,120]
[337307305,1725591096672,-15974.0,0.00047,30]
[337307306,1725591096850,-155.739583,0.00047,61]
[337307307,1725591096887,-155.00188065,0.00047,30]
[337307308,1725591096922,-150.0,0.00047,30]
[337307309,1725591096956,-150.0,0.00047,30]
[337307310,1725591096989,-210.04396304,0.00047,30]
[337307311,1725591097023,-254.17682028,0.00047,30]
[337307312,1725591097057,-164.50727367,0.00047,30]
[337307313,1725591097090,-150.0,0.0004712,120]
[337307314,1725591097124,-1342.28,0.00047123,120]
[337307315,1725591097156,-2000.0,0.00047123,120]
[337307316,1725591097189,-2899.9908,0.0004718,90]
[337307317,1725591097220,-150.0,0.0004719,120]
[337307318,1725591097253,-150.0,0.00047196,120]
[337307319,1725591097287,-151.0,0.00047233,120]
[337307320,1725591097320,-150.0,0.0004725,35]
[337307321,1725591097353,-7840.55,0.000473,120]
[337307322,1725591097388,-1342.28,0.00047397,120]
[337307323,1725591097422,-150.0,0.0004755,120]
[337307324,1725591097457,-1342.28,0.00047671,120]
[337307325,1725591097490,-2000.0,0.00047671,120]
[337307326,1725591097525,-150.0,0.00047759,120]
[337307327,1725591097560,-236.38413678,0.000478,120]
[337307328,1725591097596,-150.0,0.00047829,120]
[337307329,1725591097632,-150.0,0.0004785,120]
[337307330,1725591097667,-150.0,0.00047855,120]
[337307331,1725591097703,-701.33172365,0.0004789,30]
[337307332,1725591097737,-15000.0,0.0004789,30]
[337307333,1725591097772,-1342.28,0.00047945,120]
[337307334,1725591097809,-4200.0,0.00047945,30]
[337307335,1725591097845,-1000.0,0.00047999,120]
[337307336,1725591097891,-8521.81818281,0.00048,38]
[337307345,1725591100349,-500.0,0.00041095,30]
[337307346,1725591100384,-500.0,0.00041643,30]
[337307347,1725591100416,-500.0,0.00041643,30]
[337307348,1725591100448,-500.0,0.00042191,30]
[337307349,1725591100482,-3700.0,0.00042465,30]
[337307350,1725591100517,-500.0,0.00042739,30]
[337307351,1725591100551,-503.12193606,0.00042739,30]
[337307352,1725591100587,-500.0,0.00043835,30]
[337307353,1725591100623,-500.0,0.00044931,30]
[337307354,1725591100657,-217.16015325,0.00047829,120]
[337307355,1725591100690,-41478.18181719,0.00048,38]
[337307356,1725591100728,-50000.0,0.00048,48]
[337307357,1725591100760,-6435.915559,0.00048,30]
[337307358,1725591100792,-14083.69915297,0.00048,30]
[337307359,1725591100826,-151.0,0.00048,120]
[337307360,1725591100859,-160.0,0.00048,90]
[337307361,1725591100895,-176.8287718,0.00048,60]
[337307362,1725591100926,-749.05750128,0.00048,120]
[337307363,1725591100959,-1592.0844171,0.00048,120]
[337307364,1725591100992,-1000000.0,0.00048,120]
[337307365,1725591101028,-2000.0,0.00048,120]
[337307366,1725591101062,-8005.0,0.00048,30]
[337307367,1725591101096,-500000.0,0.00048,120]
[337307368,1725591101128,-1000.0,0.00048,120]
[337307369,1725591101164,-2165.08659612,0.00048,120]
[337307370,1725591101196,-1258.86116253,0.00048,120]
[337307371,1725591101230,-150.0,0.00048,30]
[337307372,1725591101265,-2812.45970269,0.0004808,90]
[337307373,1725591101299,-1342.28,0.00048219,120]
[337307374,1725591101331,-2000.0,0.00048219,120]
[337307375,1725591101365,-177.41573148,0.0004822,120]
[337307376,1725591101401,-151.0,0.00048247,120]
[337307377,1725591101437,-150.0,0.00048404,120]
[337307378,1725591101470,-500000.0,0.0004844,30]
[337307379,1725591101504,-1342.28,0.00048493,120]
[337307380,1725591101538,-150.0,0.00048679,120]
[337307381,1725591101573,-15000.0,0.0004875,30]
[337307382,1725591101610,-1342.28,0.00048767,120]
[337307383,1725591101644,-2000.0,0.00048767,120]
[337307384,1725591101678,-150.0,0.00048792,120]
[337307385,1725591101712,-424.29946875,0.000488,120]
[337307386,1725591101743,-1022.40399045,0.000488,120]
[337307387,1725591101775,-402.7184176,0.000488,120]
[337307388,1725591101808,-11197.69234507,0.000488,120]
[337307389,1725591101841,-10332.03555206,0.000488,120]
[337307390,1725591101874,-150.0,0.00048851,120]
[337307391,1725591101906,-42529.29032107,0.000489,30]
[337307392,1725591101942,-1136.16966304,0.000489,120]
[337307393,1725591101977,-690.19600097,0.000489,120]
[337307394,1725591102012,-150.0,0.00048903,120]
[337307395,1725591102048,-150.0,0.00048996,120]
[337307396,1725591102080,-1000.0,0.00048999,120]
[337307397,1725591102115,-50000.0,0.00049,39]
[337307398,1725591102148,-50000.0,0.00049,49]
[337307399,1725591102350,-734.83797273,0.00049,30]
[337307400,1725591102384,-16646.06694057,0.00049,30]
[337307401,1725591102418,-4451.94491332,0.00049,30]
[337307402,1725591102452,-982.52989168,0.00049,120]
[337307403,1725591102487,-547.62047416,0.00049,120]
[337307404,1725591102522,-174.54802622,0.00049,120]
[337307405,1725591102559,-1000000.0,0.00049,120]
[337307406,1725591102591,-5000.0,0.00049,120]
[337307407,1725591102628,-1000.0,0.00049,120]
[337307408,1725591102663,-500000.0,0.00049,120]
[337307409,1725591102703,-1342.28,0.00049041,120]
[337307410,1725591102738,-4200.0,0.00049041,30]
[337307411,1725591102773,-150.0,0.00049047,120]
[337307412,1725591102806,-1011.82,0.0004908,34]
[337307413,1725591102840,-151.761,0.00049093,120]
[337307414,1725591102876,-151.761,0.00049093,120]
[337307415,1725591102913,-151.761,0.00049093,120]
[337307416,1725591102948,-151.761,0.00049093,120]
[337307417,1725591102981,-5000.0,0.00049126,30]
[337307418,1725591103013,-5000.0,0.00049135,30]
[337307419,1725591103047,-5000.0,0.00049135,30]
[337307420,1725591103080,-5000.0,0.00049136,30]
[337307421,1725591103115,-5000.0,0.00049171,30]
[337307422,1725591103149,-150.0,0.00049221,120]
[337307423,1725591103182,-5000.0,0.00049224,30]
[337307424,1725591103214,-4334.66,0.00049231,30]
[337307425,1725591103246,-5000.0,0.00049247,30]
[337307426,1725591103280,-782.17,0.00049249,30]
[337307427,1725591103314,-151.0,0.0004926,120]
[337307428,1725591103348,-5000.0,0.00049282,30]
[337307429,1725591103383,-150.0,0.00049291,120]
[337307430,1725591103416,-1580.95,0.00049297,30]
[337307431,1725591103446,-2216.88,0.00049304,30]
[337307432,1725591103479,-5000.0,0.00049308,30]
[337307433,1725591103512,-300.0,0.00049315,30]
[337307434,1725591103545,-300.0,0.00049315,30]
[337307435,1725591103578,-300.0,0.00049315,30]
[337307436,1725591103610,-300.0,0.00049315,30]
[337307437,1725591103644,-300.0,0.00049315,30]
[337307438,1725591103676,-300.0,0.00049315,30]
[337307439,1725591103709,-300.0,0.00049315,30]
[337307440,1725591103742,-300.0,0.00049315,30]
[337307441,1725591103774,-300.0,0.00049315,30]
[337307442,1725591103808,-300.0,0.00049315,30]
[337307443,1725591103841,-210.0,0.00049315,30]
[337307444,1725591103879,-678.78129637,0.00049315,120]
[337307445,1725591103915,-1342.28,0.00049315,120]
[337307446,1725591103949,-5515.0,0.00049315,30]
[337307447,1725591103982,-2000.0,0.00049315,120]
[337307448,1725591104017,-1000.0,0.00049315,34]
[337307449,1725591104050,-1000.0,0.00049315,120]
[337307450,1725591104083,-216.57600886,0.00049315,120]
[337307451,1725591104318,500.0,0.00043287,30]
[337307452,1725591104356,500.0,0.00046027,30]
[337307453,1725591104400,3700.0,0.00043561,30]
[337307454,1725591104448,500.0,0.00044383,30]
[337307455,1725591104485,500.0,0.00047123,30]
[337307456,1725591104524,3700.0,0.00044657,30]
[337307457,1725591104573,500.0,0.00045479,30]
[337307458,1725591104615,489.98680556,0.00048219,30]
[337307459,1725591104661,3700.0,0.00045753,30]
[337307460,1725591105488,500.0,0.00046575,30]
[337307461,1725591106230,3700.0,0.00046849,30]
[337307462,1725591107080,500.0,0.00047671,30]
[337307463,1725591107790,3700.0,0.00047945,30]
[337307464,1725591108051,150.0,0.00047945,30]
[337307465,1725591108095,316.45625417,0.00048942,30]
[337307466,1725591108661,500.0,0.00048767,30]
[337307467,1725591109351,3700.0,0.00049041,30]
[337307468,1725591109952,153.413,0.00049041,30]
[337307469,1725591132947,-620.54161186,0.0004949,120]
[337307470,1725591132981,-496.39083155,0.000495,120]
[337307471,1725591133015,-949.36890125,0.000495,120]
[337307472,1725591133050,-1342.28,0.00049589,120]
[337307473,1725591133086,-1342.28,0.00049863,120]
[337307474,1725591133120,-2000.0,0.00049863,120]
[337307475,1725591133153,-500.0,0.00049863,90]
[337307476,1725591133187,-1000.0,0.00049999,120]
[337307477,1725591133225,-50000.0,0.0005,50]
[337307478,1725591133261,-700.0,0.0005,120]
[337307479,1725591133298,-200.0,0.0005,120]
[337307480,1725591133331,-651.93197749,0.0005,120]
[337307481,1725591133365,-150.0,0.0005,120]
[337307482,1725591133402,-1514.6685327,0.0005,60]
[337307483,1725591133445,-605.68734406,0.0005,120]
[337307484,1725591133481,-1219.0358033,0.0005,120]
[337307485,1725591133516,-980.6548652,0.0005,120]
[337307486,1725591133552,-1000000.0,0.0005,120]
[337307487,1725591133586,-2000.0,0.0005,120]
[337307488,1725591133619,-1000.0,0.0005,120]
[337307489,1725591133653,-390000.0,0.0005,120]
[337307490,1725591133692,-1342.41539552,0.00050136,120]
[337307491,1725591133729,-4200.0,0.00050137,90]
[337307492,1725591133764,-3700.0,0.00050137,90]
[337307493,1725591133800,-151.0,0.00050274,120]
[337307494,1725591133836,-2000.0,0.0005041,120]
[337307495,1725591133870,-290.73808231,0.00050411,90]
[337307496,1725591133904,-7840.55,0.00050462,120]
[337307497,1725591133937,-1553.4619886,0.00050685,90]
[337307498,1725591133973,-1638.88551556,0.00050685,90]
[337307499,1725591134009,-2000.0,0.00050958,120]
[337307500,1725591134044,-1000.0,0.00050999,120]
[337307501,1725591134080,-50000.0,0.00051,51]
[337307502,1725591134115,-1000.0,0.00051,120]
[337307503,1725591134151,-100000.0,0.00051,120]
[337307504,1725591134184,-1923.59161918,0.0005127,61]
[337307505,1725591134216,-151.0,0.00051288,120]
[337307506,1725591134250,-2000.0,0.00051506,120]
[337307507,1725591134285,-279.62717687,0.0005152,120]
[337307508,1725591134319,-888.0,0.00051726,120]
[337307509,1725591134353,-888.0,0.00051726,120]
[337307510,1725591134386,-888.0,0.00051726,120]
[337307511,1725591134420,-888.0,0.00051726,120]
[337307512,1725591134452,-888.0,0.00051726,120]
[337307513,1725591134482,-888.0,0.00051726,120]
[337307514,1725591134515,-888.0,0.00051726,120]
[337307515,1725591134547,-888.0,0.00051726,120]
[337307516,1725591134580,-888.0,0.00051726,120]
[337307517,1725591134613,-888.0,0.00051726,120]
[337307518,1725591134648,-888.0,0.00051726,120]
[337307519,1725591134683,-888.0,0.00051726,120]
[337307520,1725591134719,-888.0,0.00051726,120]
[337307521,1725591134752,-888.0,0.00051726,120]
[337307522,1725591134787,-888.0,0.00051726,120]
[337307523,1725591134821,-888.0,0.00051726,120]
[337307524,1725591134855,-888.0,0.00051726,120]
[337307525,1725591134890,-888.0,0.00051726,120]
[337307526,1725591134925,-888.0,0.00051726,120]
[337307527,1725591134959,-417.68613166,0.00051726,120]
[337307528,1725591134993,-1000.0,0.00051999,120]
[337307529,1725591135028,-50000.0,0.00052,52]
[337307530,1725591135061,-789.88,0.00052,120]
[337307531,1725591135095,-238.80387923,0.00052,120]
[337307532,1725591135129,-2000.0,0.00052,120]
[337307533,1725591135163,-1000.0,0.00052,120]
[337307534,1725591135196,-1000.0,0.00052054,120]
[337307535,1725591135229,-2000.0,0.00052054,120]
[337307536,1725591135263,-569.15,0.00052055,90]
[337307537,1725591135296,-151.0,0.00052301,120]
[337307538,1725591135497,-1000.0,0.00052499,120]
[337307539,1725591135534,-1011.82,0.0005259,62]
[337307540,1725591135569,-2000.0,0.00052602,120]
[337307541,1725591135602,-293.40087105,0.000528,120]
[337307542,1725591135641,-1000.0,0.00052999,120]
[337307543,1725591135680,-50000.0,0.00053,53]
[337307544,1725591135717,-200.0,0.00053,120]
[337307545,1725591135752,-1000.0,0.00053,120]
[337307546,1725591135788,-2000.0,0.0005315,120]
[337307547,1725591135823,-151.0,0.00053315,120]
[337307548,1725591135857,-848.65493273,0.00053441,120]
[337307549,1725591135891,-853.0483561,0.00053444,120]
[337307550,1725591135926,-20648.30916332,0.00053447,120]
[337307551,1725591135961,-362.36285721,0.00053447,120]
[337307552,1725591135995,-847.15376233,0.00053448,120]
[337307553,1725591136034,-362.36285721,0.0005345,120]
[337307554,1725591136069,-165.216109,0.00053454,120]
[337307555,1725591136103,-3206.56906476,0.00053455,120]
[337307556,1725591136138,-165.216109,0.00053456,120]
[337307557,1725591136170,-914.18358228,0.00053456,120]
[337307558,1725591136203,-168.05694264,0.00053458,120]
[337307559,1725591136237,-822.68436331,0.00053459,120]
[337307560,1725591136273,-853.0483561,0.00053461,120]
[337307561,1725591136310,-178.44480399,0.00053461,120]
[337307562,1725591136346,-2168.60037334,0.00053461,120]
[337307563,1725591136384,-19242.33979676,0.00053461,120]
[337307564,1725591136421,-853.0483561,0.00053463,120]
[337307565,1725591136453,-158.64623745,0.00053463,120]
[337307566,1725591136487,-853.0483561,0.00053467,120]
[337307567,1725591136522,-2168.60037334,0.00053467,120]
[337307568,1725591136557,-171.55131458,0.00053468,120]
[337307569,1725591136591,-19242.33979676,0.00053469,120]
[337307570,1725591136628,-19242.33979676,0.0005347,120]
[337307571,1725591136666,-847.15376233,0.00053472,120]
[337307572,1725591136700,-169.80823979,0.00053473,120]
[337307573,1725591136735,-165.216109,0.00053473,120]
[337307574,1725591136768,-171.50960838,0.00053474,120]
[337307575,1725591136803,-186.96444442,0.00053476,120]
[337307576,1725591136838,-178.44480399,0.00053476,120]
[337307577,1725591136874,-3206.56906476,0.00053476,120]
[337307578,1725591136910,-2782.09447954,0.00053476,120]
[337307579,1725591136945,-165.216109,0.00053478,120]
[337307580,1725591136984,-847.15376233,0.00053478,120]
[337307581,1725591137023,-847.15376233,0.00053481,120]
[337307582,1725591137063,-822.68436331,0.00053484,120]
[337307583,1725591137099,-171.55131458,0.00053484,120]
[337307584,1725591137139,-171.50960838,0.00053486,120]
[337307585,1725591137177,-168.05694264,0.00053488,120]
[337307586,1725591137211,-171.50960838,0.00053489,120]
[337307587,1725591137245,-832.60137796,0.00053489,120]
[337307588,1725591137283,-168.05694264,0.0005349,120]
[337307589,1725591137358,-362.36285721,0.00053493,120]
[337307590,1725591137390,-186.96444442,0.00053495,120]
[337307591,1725591137424,-2168.60037334,0.00053497,120]
[337307592,1725591137458,-847.15376233,0.00053498,120]
[337307593,1725591137493,-8477.68776044,0.00053501,120]
[337307594,1725591137528,-8477.68776044,0.00053502,120]
[337307595,1725591137563,-3206.56906476,0.00053503,120]
[337307596,1725591137598,-186.96444442,0.00053503,120]
[337307597,1725591137632,-169.80823979,0.00053503,120]
[337307598,1725591137671,-848.65493273,0.00053504,120]
[337307599,1725591137705,-827.8443596,0.00053505,120]
[337307600,1725591137743,-822.68436331,0.00053506,120]
[337307601,1725591137777,-2782.09447954,0.00053507,120]
[337307602,1725591137811,-169.80823979,0.00053508,120]
[337307603,1725591137846,-848.65493273,0.00053512,120]
[337307604,1725591137880,-176.89479826,0.00053512,120]
[337307605,1725591137914,-8477.68776044,0.00053514,120]
[337307606,1725591137947,-914.18358228,0.00053515,120]
[337307607,1725591137978,-914.18358228,0.00053515,120]
[337307608,1725591138011,-158.64623745,0.00053516,120]
[337307609,1725591138044,-827.8443596,0.00053519,120]
[337307610,1725591138077,-832.60137796,0.0005352,120]
[337307611,1725591138110,-165.216109,0.0005352,120]
[337307612,1725591138143,-169.80823979,0.00053521,120]
[337307613,1725591138179,-827.8443596,0.00053521,120]
[337307614,1725591138211,-176.89479826,0.00053522,120]
[337307615,1725591138245,-171.55131458,0.0005353,120]
[337307616,1725591138280,-178.44480399,0.00053532,120]
[337307617,1725591138315,-362.36285721,0.00053533,120]
[337307618,1725591138356,-827.8443596,0.00053535,120]
[337307619,1725591138400,-20648.30916332,0.00053536,120]
[337307620,1725591138440,-2782.09447954,0.00053537,120]
[337307621,1725591138481,-8477.68776044,0.00053537,120]
[337307622,1725591138523,-158.64623745,0.00053537,120]
[337307623,1725591138564,-178.44480399,0.00053539,120]
[337307624,1725591138607,-3206.56906476,0.0005354,120]
[337307625,1725591138650,-853.0483561,0.00053544,120]
[337307626,1725591138692,-8477.68776044,0.00053545,120]
[337307627,1725591138733,-178.44480399,0.00053548,120]
[337307628,1725591138774,-171.50960838,0.00053548,120]
[337307629,1725591138813,-19242.33979676,0.00053549,120]
[337307630,1725591138852,-176.89479826,0.0005355,120]
[337307631,1725591138891,-171.55131458,0.0005355,120]
[337307632,1725591138932,-822.68436331,0.00053551,120]
[337307633,1725591138972,-20648.30916332,0.00053554,120]
[337307634,1725591139013,-176.89479826,0.00053554,120]
[337307635,1725591139052,-848.65493273,0.00053555,120]
[337307636,1725591139090,-158.64623745,0.00053557,120]
[337307637,1725591139132,-827.8443596,0.00053557,120]
[337307638,1725591139173,-158.64623745,0.00053558,120]
[337307639,1725591139212,-186.96444442,0.00053562,120]
[337307640,1725591139250,-914.18358228,0.00053563,120]
[337307641,1725591139290,-171.55131458,0.00053563,120]
[337307642,1725591139328,-171.50960838,0.00053568,120]
[337307643,1725591139366,-914.18358228,0.00053571,120]
[337307644,1725591139405,-20648.30916332,0.00053573,120]
[337307645,1725591139443,-3206.56906476,0.00053574,120]
[337307646,1725591139482,-362.36285721,0.00053582,120]
[337307647,1725591139517,-2168.60037334,0.00053582,120]
[337307648,1725591139554,-168.05694264,0.00053584,120]
[337307649,1725591139592,-832.60137796,0.00053585,120]
[337307650,1725591139631,-822.68436331,0.00053586,120]
[337307651,1725591139676,-848.65493273,0.00053586,120]
[337307652,1725591139716,-19242.33979676,0.00053587,120]
[337307653,1725591139755,-169.80823979,0.00053588,120]